{"text_format":"1","workbook":"xlsx","n_sheets":5,"sheets":["Title","Instructions","Input Output 1","Input Output 2","Other Data"],"not_rendered":{"charts":2,"images":9,"macros":1,"external_links":0,"defined_names":18,"comments":0,"pivot_tables":0},"unopened":[],"bounds":{"document_bytes":16777216,"sheet_cells":100000,"rows_first":2000,"rows_last":500,"rows_between":2000,"halvings":0,"cell_chars":16384,"cell_head_chars":4096},"cells_cut":0,"cells_raw":0,"read":"whole","date_system":"1900"}

{"sheet":"Title","index":0,"n_rows":17,"n_cols":9,"rows_kept":17,"cut":false,"hidden":false,"merged":[]}
[]
[]
[]
[null,"Dr. Larry's"]
[]
[]
[]
[]
[]
[null,"Feed Need Program 3.0.22"]
[]
[null,"Folllow the steps in the instructions to see how much feed your birds are predicted to eat"]
[]
[]
[null,null,null,null,null,null,null,null,"Gene M. Pesti"]
[null,null,null,null,null,null,null,null,"Poultry Hub Australia"]
[null,null,null,null,null,null,null,null,"The University of New England"]

{"sheet":"Instructions","index":1,"n_rows":0,"n_cols":0,"rows_kept":0,"cut":false,"hidden":false,"merged":[]}

{"sheet":"Input Output 1","index":2,"n_rows":48,"n_cols":32,"rows_kept":48,"cut":false,"hidden":false,"merged":[[10,12,10,13],[6,12,6,13],[7,12,7,13],[8,12,8,13],[6,2,7,2],[6,3,7,3],[6,5,7,5],[6,7,7,7],[9,12,9,13]]}
["First, input data that has feed consumption as a function of age in cells C6 to D18."]
["Second, transfer the coefficients from the graph to cells 026 to O29:"]
["Third, enter your variables in L7 to L11:"]
["Forth, Read your feed needs in cells N15 to N21"]
[]
[]
[null,null,"Age (Days)","Cumulative Consumption",null,"Predicted",null,"% Error",null,null,null,0,"Age at Start (Days)"]
[null,null,null,null,null,null,null,null,null,null,null,42,"Age at End (Days)",null,null,null,null,null,null,null,null,null,null,null,null,null,null,null,"First","Second","Diff"]
[null,null,0,0,null,{"$f":"IF(C9=\"\",\"\",O$26+O$27*C9+O$28*C9^2+O$29*C9^3)","v":27.636363639999999},null,null,null,null,null,12,"Pens on the Feed",null,null,null,null,null,null,null,null,null,null,null,null,null,null,null,"Cons","Cons"]
[null,null,{"$f":"C9+7","v":7},166,null,123.43939565000001,null,{"$f":"100-(F10/D10)*100","v":25.638918283132526},null,null,null,42,"Birds per Pen",null,null,null,null,null,null,null,null,null,null,null,null,null,null,{"$f":"'Input Output 1'!$O$26","v":27.636363639999999},{"$f":"AB10+AB11*L7+AB12*L7^2+AB13*L7^3","v":27.636363639999999},{"$f":"AB10+AB11*L8+AB12*L8^2+AB13*L8^3","v":4562.4440584000004},{"$f":"AD10-AC10","v":4534.8076947600002}]
[null,null,{"$f":"C10+7","v":14},535,null,513.86797832000002,null,3.9499105943925201,null,null,null,10,"% Margin of Safety",null,null,null,null,null,null,null,null,null,null,null,null,null,null,{"$f":"'Input Output 1'!$O$27","v":-8.4523294199999999}]
[null,null,21,1155,null,1175.95242379,null,-1.8140626658008614,null,null,null,null,null,null,null,null,null,null,null,null,null,null,null,null,null,null,null,{"$f":"'Input Output 1'!$O$28","v":3.2407677399999999}]
[null,null,28,2051,null,2086.7230442,null,-1.7417378937103933,null,null,"And your feed needs are:",null,null,null,null,null,null,null,null,null,null,null,null,null,null,null,null,{"$f":"'Input Output 1'!$O$29","v":-1.116117E-2}]
[null,null,35,3211,null,3223.2101516900002,null,-0.38026009623170864]
[null,null,42,4586,null,4562.4440584000004,null,0.51364896641953806,null,null,null,"In Grams =",null,{"$f":"AE10*L9*L10*(1+L11*0.01)","v":2514097.3859749446},null,null,null,null,null,null,null,null,null,null,null,null,null,null,{"$f":"C8","v":0},null,null,{"$f":"D8","v":0}]
[null,null,49,6115,null,6081.4550764699998,null,0.54856784186426921,null,null,null,"In Kilograms = ",null,{"$f":"N15/1000","v":2514.0973859749447},null,null,null,null,null,null,null,null,null,null,null,null,null,1,{"$f":"IF(C9=\"\",\"\",C9)","v":0},{"$f":"IF(C9=\"\",\"\",C9^2)","v":0},{"$f":"IF(C9=\"\",\"\",C9^3)","v":0},{"$f":"IF(D9=\"\",\"\",D9)","v":0}]
[null,null,56,7733,null,7757.2735180400005,null,-0.31389522875986131,null,null,null,"In Metric Tons = ",null,{"$f":"N16/1000","v":2.5140973859749449},null,null,null,null,null,null,null,null,null,null,null,null,null,2,7,49,343,166]
[null,null,null,null,null,null,null,null,null,null,null,null,null,null,null,null,null,null,null,null,null,null,null,null,null,null,null,3,14,196,2744,535]
[null,null,null,null,null,null,null,null,null,null,null,"In Pounds =",null,{"$f":"N15/454","v":5537.659440473446},null,null,null,null,null,null,null,null,null,null,null,null,null,4,21,441,9261,1155]
[null,null,null,null,null,null,null,null,null,null,null,"In Imperial Tons = ",null,{"$f":"N19/2000","v":2.7688297202367229},null,null,null,null,null,null,null,null,null,null,null,null,null,5,28,784,21952,2051]
[null,null,null,null,null,null,null,null,null,null,null,"In Stones = ",null,{"$f":"N19/14","v":395.54710289096045},null,null,null,null,null,null,null,null,null,null,null,null,null,6,35,1225,42875,3211]
[null,null,null,null,null,null,null,null,null,null,null,null,null,null,null,null,null,null,null,null,null,null,null,null,null,null,null,7,42,1764,74088,4586]
[null,null,null,null,null,null,null,null,null,null,null,null,null,null,null,null,null,null,null,null,null,null,null,null,null,null,null,8,49,2401,117649,6115]
[null,null,null,null,null,null,null,null,null,null,null,null,null,null,null,null,null,null,null,null,null,null,null,null,null,null,null,9,56,3136,175616,7733]
[null,null,null,null,null,null,null,null,null,null,null,null,null,null,"Coefficients"]
[null,null,null,null,null,null,null,null,null,null,null,null,null,"Intercept",27.636363639999999]
[null,null,null,null,null,null,null,null,null,null,null,null,null,"X",-8.4523294199999999]
[null,null,null,null,null,null,null,null,null,null,null,null,null,"X2",3.2407677399999999]
[null,null,null,null,null,null,null,null,null,null,null,null,null,"X3",-1.116117E-2]
[]
[]
[]
[]
[]
[]
[]
[]
[]
[]
[]
[]
[]
[]
[]
[]
[]
[]
[null,null,null,null,null,null,null,null,null,null,null,null,null,null,null,null,null,null,null,null,null,null,null,{"$f":"IF(C18=\"\",\"\",C18)","v":""},{"$f":"IF(C18=\"\",\"\",C18^2)","v":""},{"$f":"IF(C18=\"\",\"\",C18^3)","v":""},{"$f":"IF(D18=\"\",\"\",D18)","v":""}]

{"sheet":"Input Output 2","index":3,"n_rows":48,"n_cols":32,"rows_kept":48,"cut":false,"hidden":false,"merged":[[8,12,8,13],[9,12,9,13],[10,12,10,13],[6,2,7,2],[6,3,7,3],[6,5,7,5],[6,7,7,7],[6,12,6,13],[7,12,7,13]]}
["First, input data that has feed consumption as a function of age in cells C6 to D18."]
["Second, transfer the coefficients from the graph to cells 026 to O29:"]
["Third, enter your variables in L7 to L11:"]
["Forth, Read your feed needs in cells N15 to N21"]
[]
[]
[null,null,"Age (Days)","Cumulative Consumption",null,"Predicted",null,"% Error",null,null,null,0,"Age at Start (Days)"]
[null,null,null,null,null,null,null,null,null,null,null,18,"Age at End (Days)",null,null,null,null,null,null,null,null,null,null,null,null,null,null,null,"First","Second","Diff"]
[null,null,0,0,null,{"$f":"IF(C9=\"\",\"\",O$26+O$27*C9+O$28*C9^2+O$29*C9^3)","v":-0.34615384999999999},null,null,null,null,null,12,"Pens on the Feed",null,null,null,null,null,null,null,null,null,null,null,null,null,null,null,"Cons","Cons"]
[null,null,2,12,null,12.208791209999999,null,{"$f":"100-(F10/D10)*100","v":-1.7399267499999809},null,null,null,42,"Birds per Pen",null,null,null,null,null,null,null,null,null,null,null,null,null,null,{"$f":"'Input Output 2'!$O$26","v":-0.34615384999999999},{"$f":"AB10+AB11*L7+AB12*L7^2+AB13*L7^3","v":-0.34615384999999999},{"$f":"AB10+AB11*L8+AB12*L8^2+AB13*L8^3","v":249.31168704999999},{"$f":"AD10-AC10","v":249.6578409}]
[null,null,4,28,null,28.388611389999998,null,-1.3878978214285667,null,null,null,10,"% Margin of Safety",null,null,null,null,null,null,null,null,null,null,null,null,null,null,{"$f":"'Input Output 2'!$O$27","v":5.3834915099999998}]
[null,null,6,48,null,48.266733250000001,null,-0.55569427083332812,null,null,null,null,null,null,null,null,null,null,null,null,null,null,null,null,null,null,null,{"$f":"'Input Output 2'!$O$28","v":0.44393106999999998}]
[null,null,8,72,null,71.916583349999996,null,0.11585645833334013,null,null,"And your feed needs are:",null,null,null,null,null,null,null,null,null,null,null,null,null,null,null,null,{"$f":"'Input Output 2'!$O$29","v":1.52972E-3}]
[null,null,10,100,null,99.411588249999994,null,0.5884117500000059]
[null,null,12,131,null,130.82517451000001,null,0.13345457251907078,null,null,null,"In Grams =",null,{"$f":"AE10*L9*L10*(1+L11*0.01)","v":138410.30699496},null,null,null,null,null,null,null,null,null,null,null,null,null,null,{"$f":"C8","v":0},null,null,{"$f":"D8","v":0}]
[null,null,14,166,null,166.23076868999999,null,-0.13901728313253159,null,null,null,"In Kilograms = ",null,{"$f":"N15/1000","v":138.41030699496},null,null,null,null,null,null,null,null,null,null,null,null,null,1,{"$f":"IF(C9=\"\",\"\",C9)","v":0},{"$f":"IF(C9=\"\",\"\",C9^2)","v":0},{"$f":"IF(C9=\"\",\"\",C9^3)","v":0},{"$f":"IF(D9=\"\",\"\",D9)","v":0}]
[null,null,16,206,null,205.70179734999999,null,0.14475856796116204,null,null,null,"In Metric Tons = ",null,{"$f":"N16/1000","v":0.13841030699495999},null,null,null,null,null,null,null,null,null,null,null,null,null,2,2,4,8,12]
[null,null,18,249,null,{"$f":"IF(C18=\"\",\"\",O$26+O$27*C18+O$28*C18^2+O$29*C18^3)","v":249.31168704999999},null,{"$f":"100-(F18/D18)*100","v":-0.12517552208835525},null,null,null,null,null,null,null,null,null,null,null,null,null,null,null,null,null,null,null,3,4,16,64,28]
[null,null,20,297,null,297.13386434999995,null,-4.5072171717166043E-2,null,null,null,"In Pounds =",null,{"$f":"N15/454","v":304.86851761004408},null,null,null,null,null,null,null,null,null,null,null,null,null,4,6,36,216,48]
[null,null,22,349,null,349.24175580999997,null,-6.9271005730641377E-2,null,null,null,"In Imperial Tons = ",null,{"$f":"N19/2000","v":0.15243425880502204},null,null,null,null,null,null,null,null,null,null,null,null,null,5,8,64,512,72]
[null,null,24,406,null,405.70878799000002,null,7.1727096059106543E-2,null,null,null,"In Stones = ",null,{"$f":"N19/14","v":21.776322686431719},null,null,null,null,null,null,null,null,null,null,null,null,null,6,10,100,1000,100]
[null,null,null,null,null,null,null,null,null,null,null,null,null,null,null,null,null,null,null,null,null,null,null,null,null,null,null,7,12,144,1728,131]
[null,null,null,null,null,null,null,null,null,null,null,null,null,null,null,null,null,null,null,null,null,null,null,null,null,null,null,8,14,196,2744,166]
[null,null,null,null,null,null,null,null,null,null,null,null,null,null,null,null,null,null,null,null,null,null,null,null,null,null,null,9,16,256,4096,206]
[null,null,null,null,null,null,null,null,null,null,null,null,null,null,"Coefficients"]
[null,null,null,null,null,null,null,null,null,null,null,null,null,"Intercept",-0.34615384999999999]
[null,null,null,null,null,null,null,null,null,null,null,null,null,"X",5.3834915099999998]
[null,null,null,null,null,null,null,null,null,null,null,null,null,"X2",0.44393106999999998]
[null,null,null,null,null,null,null,null,null,null,null,null,null,"X3",1.52972E-3]
[]
[]
[]
[]
[]
[]
[]
[]
[]
[]
[]
[]
[]
[]
[]
[]
[]
[]
[null,null,null,null,null,null,null,null,null,null,null,null,null,null,null,null,null,null,null,null,null,null,null,{"$f":"IF(C18=\"\",\"\",C18)","v":18},{"$f":"IF(C18=\"\",\"\",C18^2)","v":324},{"$f":"IF(C18=\"\",\"\",C18^3)","v":5832},{"$f":"IF(D18=\"\",\"\",D18)","v":249}]

{"sheet":"Other Data","index":4,"n_rows":51,"n_cols":7,"rows_kept":51,"cut":false,"hidden":false,"merged":[[7,3,8,3],[7,4,8,4],[7,5,8,5],[7,6,8,6],[41,3,42,3],[41,4,42,4],[41,5,42,5],[41,6,42,6],[20,3,21,3],[20,4,21,4],[20,5,21,5],[20,6,21,6]]}
[]
[]
[]
[]
[null,null,"ROSS 308 & 308 FF Performance Objectives 2022"]
[]
[]
[null,null,null,"Age (Days)","Straight Run","Male","Female"]
[]
[null,null,null,0,0,0,0]
[null,null,null,{"$f":"D10+7","v":7},166,161,171]
[null,null,null,{"$f":"D11+7","v":14},535,542,529]
[null,null,null,21,1155,1193,1117]
[null,null,null,28,2051,2147,1956]
[null,null,null,35,3211,3394,3028]
[null,null,null,42,4586,4886,4286]
[null,null,null,49,6115,6556,5674]
[null,null,null,56,7733,8332,7133]
[]
[]
[null,null,null,"Age (Days)","Straight Run","Male","Female"]
[]
[null,null,null,0,0,0,0]
[null,null,null,2,12,11,13]
[null,null,null,4,28,26,31]
[null,null,null,6,48,45,52]
[null,null,null,8,72,68,76]
[null,null,null,10,100,95,104]
[null,null,null,12,131,126,136]
[null,null,null,14,166,161,171]
[null,null,null,16,206,201,210]
[null,null,null,18,249,245,253]
[null,null,null,20,297,295,299]
[null,null,null,22,349,348,350]
[null,null,null,24,406,408,405]
[]
[]
[]
[null,null,"From the Arbor Acres Classic Broiler Standards"]
[null,null,"for 2000 Management Guide:"]
[]
[null,null,null,"Age (Days)","Straight Run","Male","Female"]
[]
[null,null,null,0,0,0,0]
[null,null,null,{"$f":"D44+7","v":7},149,153,146]
[null,null,null,{"$f":"D45+7","v":14},471,484,458]
[null,null,null,21,986,1032,939]
[null,null,null,28,1750,1829,1669]
[null,null,null,35,2761,2911,2606]
[null,null,null,42,4074,4337,3804]
[null,null,null,49,5586,5949,5236]